[Event "Titled Tuesday Blitz August 15 Early 2023"]
[White "Dilmukhametov, Artur"]
[Black "Nikulina, Alena"]
[WhiteFideId "24179922"]
[BlackFideId "4172051"]
[WhiteElo "2275"]
[BlackElo "2058"]
[Result "0-1"]
[Round "5"]
[TimeControl "180+1"]
[Date "2023.08.15"]
[WhiteClock "0:00:00"]
[BlackClock "0:00:08"]
[Board "199"]

1. e4 {[%clk 0:02:57]}  c5 {[%clk 0:02:59]} 2. d4 {[%clk 0:02:56]}  cxd4 {[%clk 0:02:58]} 3. c3 {[%clk 0:02:57]}  Nf6 {[%clk 0:02:49]} 4. e5 {[%clk 0:02:57]}  Nd5 {[%clk 0:02:49]} 5. cxd4 {[%clk 0:02:57]}  d6 {[%clk 0:02:50]} 6. exd6 {[%clk 0:02:57]}  Qxd6 {[%clk 0:02:49]} 7. Nf3 {[%clk 0:02:54]}  Bg4 {[%clk 0:02:48]} 8. Be2 {[%clk 0:02:49]}  e6 {[%clk 0:02:42]} 9. Nc3 {[%clk 0:02:49]}  Nxc3 {[%clk 0:02:40]} 10. bxc3 {[%clk 0:02:49]}  Be7 {[%clk 0:02:39]} 11. O-O {[%clk 0:02:49]}  O-O {[%clk 0:02:38]} 12. a4 {[%clk 0:02:45]}  Nd7 {[%clk 0:02:32]} 13. Ba3 {[%clk 0:02:43]}  Qc7 {[%clk 0:02:21]} 14. Bxe7 {[%clk 0:02:43]}  Rfe8 {[%clk 0:02:20]} 15. Bh4 {[%clk 0:02:38]}  Qxc3 {[%clk 0:02:19]} 16. Rc1 {[%clk 0:02:39]}  Qa5 {[%clk 0:02:16]} 17. Bg3 {[%clk 0:02:38]}  Nf6 {[%clk 0:02:10]} 18. Ne5 {[%clk 0:02:37]}  Bxe2 {[%clk 0:02:07]} 19. Qxe2 {[%clk 0:02:38]}  Nd5 {[%clk 0:02:03]} 20. Qf3 {[%clk 0:02:26]}  f6 {[%clk 0:01:58]} 21. Nd7 {[%clk 0:01:54]}  Qxa4 {[%clk 0:01:56]} 22. Nc5 {[%clk 0:01:53]}  Qc6 {[%clk 0:01:46]} 23. Rfe1 {[%clk 0:01:46]}  Rac8 {[%clk 0:01:36]} 24. Nd3 {[%clk 0:01:29]}  Qd7 {[%clk 0:01:32]} 25. Rxc8 {[%clk 0:01:27]}  Qxc8 {[%clk 0:01:21]} 26. Nc5 {[%clk 0:01:26]}  b6 {[%clk 0:01:20]} 27. Nxe6 {[%clk 0:01:24]}  Qc3 {[%clk 0:00:26]} 28. Qxc3 {[%clk 0:00:55]}  Nxc3 {[%clk 0:00:25]} 29. f3 {[%clk 0:00:56]}  Nb5 {[%clk 0:00:20]} 30. d5 {[%clk 0:00:54]}  Kf7 {[%clk 0:00:17]} 31. Nf4 {[%clk 0:00:47]}  Rxe1+ {[%clk 0:00:16]} 32. Bxe1 {[%clk 0:00:48]}  a5 {[%clk 0:00:15]} 33. Bf2 {[%clk 0:00:46]}  a4 {[%clk 0:00:12]} 34. Bxb6 {[%clk 0:00:45]}  a3 {[%clk 0:00:13]} 35. d6 {[%clk 0:00:09]}  a2 {[%clk 0:00:11]} 36. Bd4 {[%clk 0:00:02]}  Nxd4 {[%clk 0:00:10]} 37. d7 {[%clk 0:00:03]}  a1=Q+ {[%clk 0:00:10]} 38. Kf2 {[%clk 0:00:03]}  Nc6 {[%clk 0:00:09]} 39. Nd5 {[%clk 0:00:00]}  Qa2+ {[%clk 0:00:08]} 0-1


[Site "https://www.chess.com"]

[Event "Titled Tuesday Blitz August 15 Early 2023"]
[White "White, John S."]
[Black "Floresvillar Gonzalez, Luis Migu"]
[WhiteFideId "2502348"]
[BlackFideId "5100542"]
[WhiteElo "2010"]
[BlackElo "2111"]
[Result "0-1"]
[Round "5"]
[TimeControl "180+1"]
[Date "2023.08.15"]
[WhiteClock "0:00:29"]
[BlackClock "0:00:45"]
[Board "202"]

1. e4 {[%clk 0:03:00]}  c6 {[%clk 0:03:00]} 2. d4 {[%clk 0:02:59]}  d5 {[%clk 0:03:00]} 3. Nc3 {[%clk 0:03:00]}  dxe4 {[%clk 0:02:58]} 4. Nxe4 {[%clk 0:03:01]}  Bf5 {[%clk 0:02:58]} 5. Ng3 {[%clk 0:03:00]}  Bg6 {[%clk 0:02:57]} 6. h4 {[%clk 0:03:01]}  h6 {[%clk 0:02:57]} 7. h5 {[%clk 0:03:01]}  Bh7 {[%clk 0:02:58]} 8. Nf3 {[%clk 0:03:01]}  Nd7 {[%clk 0:02:58]} 9. Bd3 {[%clk 0:03:00]}  Bxd3 {[%clk 0:02:57]} 10. Qxd3 {[%clk 0:03:01]}  e6 {[%clk 0:02:57]} 11. O-O {[%clk 0:02:59]}  Ngf6 {[%clk 0:02:54]} 12. c4 {[%clk 0:02:55]}  Bd6 {[%clk 0:02:53]} 13. Ne4 {[%clk 0:02:38]}  Nxe4 {[%clk 0:02:51]} 14. Qxe4 {[%clk 0:02:38]}  O-O {[%clk 0:02:49]} 15. Bf4 {[%clk 0:02:35]}  Nf6 {[%clk 0:02:44]} 16. Qe3 {[%clk 0:02:29]}  Bxf4 {[%clk 0:02:45]} 17. Qxf4 {[%clk 0:02:29]}  Nxh5 {[%clk 0:02:45]} 18. Qe3 {[%clk 0:02:20]}  Nf6 {[%clk 0:02:44]} 19. Rfd1 {[%clk 0:02:17]}  Re8 {[%clk 0:02:39]} 20. Rd2 {[%clk 0:02:14]}  Qc7 {[%clk 0:02:38]} 21. Rad1 {[%clk 0:02:12]}  Rad8 {[%clk 0:02:38]} 22. Qb3 {[%clk 0:02:05]}  a5 {[%clk 0:02:36]} 23. a3 {[%clk 0:02:01]}  b6 {[%clk 0:02:33]} 24. Rc2 {[%clk 0:01:43]}  c5 {[%clk 0:02:29]} 25. Rcd2 {[%clk 0:01:34]}  Ne4 {[%clk 0:02:20]} 26. Rd3 {[%clk 0:01:33]}  cxd4 {[%clk 0:02:16]} 27. Nxd4 {[%clk 0:01:31]}  Nc5 {[%clk 0:02:12]} 28. Nb5 {[%clk 0:01:24]}  Qe7 {[%clk 0:01:47]} 29. Qc2 {[%clk 0:01:16]}  Nxd3 {[%clk 0:01:47]} 30. Rxd3 {[%clk 0:01:16]}  Rxd3 {[%clk 0:01:46]} 31. Qxd3 {[%clk 0:01:17]}  Rd8 {[%clk 0:01:36]} 32. Qe3 {[%clk 0:01:16]}  Qc5 {[%clk 0:01:35]} 33. Qe4 {[%clk 0:01:11]}  Rd1+ {[%clk 0:01:31]} 34. Kh2 {[%clk 0:01:11]}  Qh5+ {[%clk 0:01:28]} 35. Kg3 {[%clk 0:01:11]}  Qg5+ {[%clk 0:01:25]} 36. Kh2 {[%clk 0:01:09]}  Qh5+ {[%clk 0:01:13]} 37. Kg3 {[%clk 0:01:09]}  Qg6+ {[%clk 0:01:12]} 38. Qxg6 {[%clk 0:01:07]}  fxg6 {[%clk 0:01:12]} 39. Nc7 {[%clk 0:01:06]}  Rd4 {[%clk 0:01:03]} 40. Nxe6 {[%clk 0:01:02]}  Rxc4 {[%clk 0:01:03]} 41. Nf4 {[%clk 0:00:56]}  g5 {[%clk 0:01:01]} 42. Nd5 {[%clk 0:00:55]}  Rc6 {[%clk 0:00:58]} 43. Kf3 {[%clk 0:00:54]}  Kf7 {[%clk 0:00:57]} 44. Ke3 {[%clk 0:00:50]}  Rc2 {[%clk 0:00:57]} 45. b4 {[%clk 0:00:48]}  axb4 {[%clk 0:00:56]} 46. axb4 {[%clk 0:00:48]}  b5 {[%clk 0:00:55]} 47. g3 {[%clk 0:00:42]}  h5 {[%clk 0:00:53]} 48. f4 {[%clk 0:00:42]}  gxf4+ {[%clk 0:00:51]} 49. Nxf4 {[%clk 0:00:41]}  g6 {[%clk 0:00:47]} 50. Ne2 {[%clk 0:00:36]}  Rc4 {[%clk 0:00:45]} 51. Nd4 {[%clk 0:00:32]}  Rxb4 {[%clk 0:00:45]} 52. Kd3 {[%clk 0:00:31]}  Rxd4+ {[%clk 0:00:44]} 53. Kxd4 {[%clk 0:00:31]}  g5 {[%clk 0:00:45]} 54. Kc5 {[%clk 0:00:31]}  h4 {[%clk 0:00:45]} 55. gxh4 {[%clk 0:00:31]}  gxh4 {[%clk 0:00:45]} 56. Kxb5 {[%clk 0:00:32]}  h3 {[%clk 0:00:45]} 57. Kc4 {[%clk 0:00:32]}  h2 {[%clk 0:00:45]} 58. Kd4 {[%clk 0:00:29]}  h1=Q {[%clk 0:00:45]} 0-1


[Site "https://www.chess.com"]

[Event "Titled Tuesday Blitz August 15 Early 2023"]
[White "Putri, Regita Desyari"]
[Black "MarijaKuznecova"]
[WhiteFideId "7109083"]
[WhiteElo "2192"]
[BlackElo "2363"]
[Result "1-0"]
[Round "5"]
[TimeControl "180+1"]
[Date "2023.08.15"]
[WhiteClock "0:00:19"]
[BlackClock "0:00:36"]
[Board "208"]

1. d4 {[%clk 0:02:59]}  Nf6 {[%clk 0:02:59]} 2. c4 {[%clk 0:02:58]}  c5 {[%clk 0:02:59]} 3. Nf3 {[%clk 0:02:58]}  cxd4 {[%clk 0:02:59]} 4. Nxd4 {[%clk 0:02:58]}  e5 {[%clk 0:02:59]} 5. Nb5 {[%clk 0:02:58]}  d5 {[%clk 0:02:59]} 6. cxd5 {[%clk 0:02:58]}  Bc5 {[%clk 0:02:59]} 7. d6 {[%clk 0:02:29]}  Bxf2+ {[%clk 0:02:32]} 8. Kxf2 {[%clk 0:02:24]}  Ng4+ {[%clk 0:02:13]} 9. Ke1 {[%clk 0:02:16]}  Qh4+ {[%clk 0:02:00]} 10. g3 {[%clk 0:02:13]}  Qf6 {[%clk 0:02:00]} 11. d7+ {[%clk 0:01:24]}  Bxd7 {[%clk 0:01:53]} 12. Nd6+ {[%clk 0:01:24]}  Kf8 {[%clk 0:01:45]} 13. Ne4 {[%clk 0:01:23]}  Qd8 {[%clk 0:01:29]} 14. h3 {[%clk 0:01:13]}  Nf6 {[%clk 0:01:23]} 15. Qd6+ {[%clk 0:01:12]}  Kg8 {[%clk 0:01:17]} 16. Nxf6+ {[%clk 0:01:12]}  gxf6 {[%clk 0:01:18]} 17. Bg2 {[%clk 0:00:56]}  Nc6 {[%clk 0:01:14]} 18. Bxc6 {[%clk 0:00:53]}  bxc6 {[%clk 0:01:10]} 19. Nc3 {[%clk 0:00:52]}  h5 {[%clk 0:00:47]} 20. Be3 {[%clk 0:00:47]}  Rb8 {[%clk 0:00:41]} 21. Rd1 {[%clk 0:00:46]}  Rxb2 {[%clk 0:00:38]} 22. Qxd7 {[%clk 0:00:44]}  Qa5 {[%clk 0:00:38]} 23. Qd8+ {[%clk 0:00:43]}  Qxd8 {[%clk 0:00:38]} 24. Rxd8+ {[%clk 0:00:44]}  Kg7 {[%clk 0:00:38]} 25. Rxh8 {[%clk 0:00:42]}  Kxh8 {[%clk 0:00:39]} 26. Kf2 {[%clk 0:00:39]}  Rc2 {[%clk 0:00:39]} 27. Rc1 {[%clk 0:00:35]}  Rb2 {[%clk 0:00:39]} 28. Bxa7 {[%clk 0:00:30]}  f5 {[%clk 0:00:39]} 29. a4 {[%clk 0:00:29]}  Rb4 {[%clk 0:00:37]} 30. Bc5 {[%clk 0:00:29]}  Rc4 {[%clk 0:00:37]} 31. Bd6 {[%clk 0:00:27]}  f6 {[%clk 0:00:35]} 32. a5 {[%clk 0:00:26]}  Rd4 {[%clk 0:00:33]} 33. Be7 {[%clk 0:00:22]}  Kg7 {[%clk 0:00:31]} 34. a6 {[%clk 0:00:22]}  Rd7 {[%clk 0:00:32]} 35. Bc5 {[%clk 0:00:23]}  Rd8 {[%clk 0:00:32]} 36. a7 {[%clk 0:00:23]}  Ra8 {[%clk 0:00:32]} 37. Na4 {[%clk 0:00:23]}  f4 {[%clk 0:00:32]} 38. gxf4 {[%clk 0:00:23]}  exf4 {[%clk 0:00:33]} 39. Rb1 {[%clk 0:00:23]}  f3 {[%clk 0:00:33]} 40. exf3 {[%clk 0:00:23]}  f5 {[%clk 0:00:31]} 41. Rb8 {[%clk 0:00:22]}  Rxa7 {[%clk 0:00:31]} 42. Bxa7 {[%clk 0:00:23]}  f4 {[%clk 0:00:31]} 43. Re8 {[%clk 0:00:22]}  Kf6 {[%clk 0:00:32]} 44. Re4 {[%clk 0:00:22]}  Kg5 {[%clk 0:00:33]} 45. Bb8 {[%clk 0:00:22]}  Kh4 {[%clk 0:00:33]} 46. Bxf4 {[%clk 0:00:18]}  Kxh3 {[%clk 0:00:34]} 47. Bg5 {[%clk 0:00:17]}  c5 {[%clk 0:00:35]} 48. f4 {[%clk 0:00:17]}  h4 {[%clk 0:00:34]} 49. f5 {[%clk 0:00:17]}  c4 {[%clk 0:00:34]} 50. f6 {[%clk 0:00:18]}  c3 {[%clk 0:00:35]} 51. f7 {[%clk 0:00:19]}  c2 {[%clk 0:00:35]} 52. f8=Q {[%clk 0:00:19]}  c1=Q {[%clk 0:00:36]} 53. Bxc1 {[%clk 0:00:20]}  Kh2 {[%clk 0:00:36]} 54. Rxh4# {[%clk 0:00:19]} 1-0


[Site "https://www.chess.com"]

[Event "Titled Tuesday Blitz August 15 Early 2023"]
[White "Cheer_Down"]
[Black "Tqebuchava, Zurab"]
[BlackFideId "13601113"]
[WhiteElo "2358"]
[BlackElo "2191"]
[Result "0-1"]
[Round "5"]
[TimeControl "180+1"]
[Date "2023.08.15"]
[WhiteClock "0:00:00"]
[BlackClock "0:00:16"]
[Board "209"]

1. e4 {[%clk 0:02:58]}  d6 {[%clk 0:02:59]} 2. d4 {[%clk 0:02:57]}  g6 {[%clk 0:03:00]} 3. Nc3 {[%clk 0:02:56]}  Bg7 {[%clk 0:02:59]} 4. Nf3 {[%clk 0:02:56]}  Bg4 {[%clk 0:02:57]} 5. h3 {[%clk 0:02:44]}  Bxf3 {[%clk 0:02:56]} 6. gxf3 {[%clk 0:02:43]}  Nd7 {[%clk 0:02:45]} 7. h4 {[%clk 0:02:42]}  h5 {[%clk 0:02:44]} 8. Bg5 {[%clk 0:02:41]}  c6 {[%clk 0:02:43]} 9. Qd2 {[%clk 0:02:34]}  Qc7 {[%clk 0:02:35]} 10. Bc4 {[%clk 0:01:47]}  e6 {[%clk 0:02:23]} 11. Be3 {[%clk 0:01:34]}  d5 {[%clk 0:02:14]} 12. Bd3 {[%clk 0:01:31]}  Ne7 {[%clk 0:02:07]} 13. Rg1 {[%clk 0:01:26]}  O-O-O {[%clk 0:02:01]} 14. O-O-O {[%clk 0:01:25]}  Bf6 {[%clk 0:01:58]} 15. Bg5 {[%clk 0:01:24]}  Bxg5 {[%clk 0:01:47]} 16. Qxg5 {[%clk 0:01:22]}  Rhe8 {[%clk 0:01:35]} 17. Kb1 {[%clk 0:01:17]}  Kb8 {[%clk 0:01:30]} 18. a3 {[%clk 0:01:07]}  Nc8 {[%clk 0:01:22]} 19. Qh6 {[%clk 0:00:59]}  Qh2 {[%clk 0:01:13]} 20. Qg5 {[%clk 0:00:48]}  Qd6 {[%clk 0:00:49]} 21. Qh6 {[%clk 0:00:40]}  Qe7 {[%clk 0:00:48]} 22. Qf4+ {[%clk 0:00:38]}  Qd6 {[%clk 0:00:46]} 23. Qh6 {[%clk 0:00:33]}  Qe7 {[%clk 0:00:45]} 24. Qf4+ {[%clk 0:00:32]}  Nd6 {[%clk 0:00:44]} 25. Rge1 {[%clk 0:00:19]}  Qf8 {[%clk 0:00:40]} 26. Qg3 {[%clk 0:00:19]}  Kc8 {[%clk 0:00:38]} 27. Qf4 {[%clk 0:00:18]}  dxe4 {[%clk 0:00:28]} 28. fxe4 {[%clk 0:00:16]}  e5 {[%clk 0:00:22]} 29. dxe5 {[%clk 0:00:16]}  Nxe5 {[%clk 0:00:22]} 30. Bf1 {[%clk 0:00:09]}  Qg7 {[%clk 0:00:18]} 31. Qc1 {[%clk 0:00:00]}  Nec4 {[%clk 0:00:16]} 0-1


[Site "https://www.chess.com"]

[Event "Titled Tuesday Blitz August 15 Early 2023"]
[White "Feliz Dotel, Dewar Bienvenido"]
[Black "Slovineanu, Viacheslav"]
[WhiteFideId "6402801"]
[BlackFideId "13900510"]
[WhiteElo "2189"]
[BlackElo "2357"]
[Result "1/2-1/2"]
[Round "5"]
[TimeControl "180+1"]
[Date "2023.08.15"]
[WhiteClock "0:00:03"]
[BlackClock "0:00:02"]
[Board "210"]

1. d4 {[%clk 0:03:00]}  Nf6 {[%clk 0:02:58]} 2. e3 {[%clk 0:03:00]}  d5 {[%clk 0:02:57]} 3. Nf3 {[%clk 0:03:00]}  Bg4 {[%clk 0:02:48]} 4. h3 {[%clk 0:02:59]}  Bxf3 {[%clk 0:02:45]} 5. Qxf3 {[%clk 0:02:59]}  e6 {[%clk 0:02:45]} 6. c4 {[%clk 0:02:58]}  c5 {[%clk 0:02:36]} 7. cxd5 {[%clk 0:02:56]}  Qxd5 {[%clk 0:02:35]} 8. Bb5+ {[%clk 0:02:52]}  Nbd7 {[%clk 0:02:30]} 9. Qxd5 {[%clk 0:02:45]}  Nxd5 {[%clk 0:02:28]} 10. Bxd7+ {[%clk 0:02:43]}  Kxd7 {[%clk 0:02:28]} 11. dxc5 {[%clk 0:02:38]}  Bxc5 {[%clk 0:02:26]} 12. O-O {[%clk 0:02:36]}  f5 {[%clk 0:01:42]} 13. a3 {[%clk 0:02:29]}  Rac8 {[%clk 0:01:37]} 14. b4 {[%clk 0:02:28]}  Be7 {[%clk 0:01:33]} 15. Bb2 {[%clk 0:02:27]}  Bf6 {[%clk 0:01:26]} 16. Bxf6 {[%clk 0:02:27]}  gxf6 {[%clk 0:01:26]} 17. Nd2 {[%clk 0:02:20]}  Rc2 {[%clk 0:01:25]} 18. Nb3 {[%clk 0:02:17]}  b6 {[%clk 0:00:59]} 19. Nd4 {[%clk 0:02:07]}  Rc4 {[%clk 0:00:56]} 20. Rfd1 {[%clk 0:01:55]}  Ke7 {[%clk 0:00:38]} 21. b5 {[%clk 0:01:48]}  f4 {[%clk 0:00:19]} 22. Nc6+ {[%clk 0:01:42]}  Kf7 {[%clk 0:00:20]} 23. exf4 {[%clk 0:01:41]}  Nxf4 {[%clk 0:00:20]} 24. Rd7+ {[%clk 0:01:39]}  Kg6 {[%clk 0:00:18]} 25. Rxa7 {[%clk 0:01:31]}  Kh6 {[%clk 0:00:17]} 26. Re1 {[%clk 0:01:28]}  Rg8 {[%clk 0:00:17]} 27. g3 {[%clk 0:01:19]}  Rc2 {[%clk 0:00:17]} 28. Nd4 {[%clk 0:00:30]}  Nxh3+ {[%clk 0:00:16]} 29. Kh2 {[%clk 0:00:24]}  Rd2 {[%clk 0:00:12]} 30. Kxh3 {[%clk 0:00:23]}  Rxd4 {[%clk 0:00:12]} 31. Kg2 {[%clk 0:00:22]}  e5 {[%clk 0:00:11]} 32. Rh1+ {[%clk 0:00:22]}  Kg6 {[%clk 0:00:11]} 33. Rhxh7 {[%clk 0:00:17]}  Rd5 {[%clk 0:00:10]} 34. a4 {[%clk 0:00:17]}  Rd4 {[%clk 0:00:10]} 35. Rhb7 {[%clk 0:00:16]}  Rc8 {[%clk 0:00:08]} 36. Rxb6 {[%clk 0:00:15]}  Rc2 {[%clk 0:00:08]} 37. Raa6 {[%clk 0:00:14]}  Rdd2 {[%clk 0:00:08]} 38. Rxf6+ {[%clk 0:00:13]}  Kg5 {[%clk 0:00:09]} 39. Rf3 {[%clk 0:00:12]}  e4 {[%clk 0:00:08]} 40. Rf8 {[%clk 0:00:10]}  e3 {[%clk 0:00:08]} 41. Kh3 {[%clk 0:00:03]}  Rxf2 {[%clk 0:00:07]} 42. Rxf2 {[%clk 0:00:03]}  Rxf2 {[%clk 0:00:08]} 43. Re6 {[%clk 0:00:03]}  e2 {[%clk 0:00:08]} 44. g4 {[%clk 0:00:02]}  Kf4 {[%clk 0:00:08]} 45. g5 {[%clk 0:00:03]}  Kxg5 {[%clk 0:00:07]} 46. Kg3 {[%clk 0:00:03]}  Rf1 {[%clk 0:00:06]} 47. Rxe2 {[%clk 0:00:03]}  Ra1 {[%clk 0:00:06]} 48. Re4 {[%clk 0:00:04]}  Kf5 {[%clk 0:00:06]} 49. Rh4 {[%clk 0:00:03]}  Ke5 {[%clk 0:00:06]} 50. Kf2 {[%clk 0:00:04]}  Kd5 {[%clk 0:00:06]} 51. Ke2 {[%clk 0:00:04]}  Kc5 {[%clk 0:00:06]} 52. Kd2 {[%clk 0:00:05]}  Kb6 {[%clk 0:00:07]} 53. Kc3 {[%clk 0:00:05]}  Ka5 {[%clk 0:00:07]} 54. Kb2 {[%clk 0:00:06]}  Rg1 {[%clk 0:00:07]} 55. Rd4 {[%clk 0:00:06]}  Rg2+ {[%clk 0:00:07]} 56. Kc3 {[%clk 0:00:06]}  Rg3+ {[%clk 0:00:07]} 57. Rd3 {[%clk 0:00:07]}  Rg1 {[%clk 0:00:06]} 58. Kb3 {[%clk 0:00:07]}  Rb1+ {[%clk 0:00:06]} 59. Ka2 {[%clk 0:00:07]}  Rb4 {[%clk 0:00:06]} 60. Ra3 {[%clk 0:00:05]}  Kb6 {[%clk 0:00:06]} 61. Ka1 {[%clk 0:00:05]}  Ka5 {[%clk 0:00:05]} 62. Ka2 {[%clk 0:00:05]}  Rh4 {[%clk 0:00:05]} 63. Kb2 {[%clk 0:00:05]}  Rh2+ {[%clk 0:00:05]} 64. Kc1 {[%clk 0:00:04]}  Rg2 {[%clk 0:00:04]} 65. Kd1 {[%clk 0:00:05]}  Rh2 {[%clk 0:00:04]} 66. Rb3 {[%clk 0:00:04]}  Kxa4 {[%clk 0:00:03]} 67. Rb1 {[%clk 0:00:03]}  Rh1+ {[%clk 0:00:02]} 68. Kc2 {[%clk 0:00:03]}  Rxb1 {[%clk 0:00:02]} 69. Kxb1 {[%clk 0:00:03]}  Kxb5 {[%clk 0:00:02]} 1/2-1/2


[Site "https://www.chess.com"]

[Event "Titled Tuesday Blitz August 15 Early 2023"]
[White "Baruch, Liam"]
[Black "Freile Martin, Javier"]
[WhiteFideId "14322064"]
[BlackFideId "3600165"]
[WhiteElo "2149"]
[BlackElo "2307"]
[Result "0-1"]
[Round "5"]
[TimeControl "180+1"]
[Date "2023.08.15"]
[WhiteClock "0:00:06"]
[BlackClock "0:01:26"]
[Board "211"]

1. e4 {[%clk 0:03:00]}  c5 {[%clk 0:02:59]} 2. Nf3 {[%clk 0:03:00]}  d6 {[%clk 0:02:59]} 3. d4 {[%clk 0:03:00]}  cxd4 {[%clk 0:02:59]} 4. Nxd4 {[%clk 0:03:01]}  Nf6 {[%clk 0:02:59]} 5. Nc3 {[%clk 0:03:02]}  Bd7 {[%clk 0:02:59]} 6. Be2 {[%clk 0:03:01]}  Nc6 {[%clk 0:02:58]} 7. Be3 {[%clk 0:03:00]}  e6 {[%clk 0:02:56]} 8. O-O {[%clk 0:02:52]}  a6 {[%clk 0:02:56]} 9. f4 {[%clk 0:02:48]}  Be7 {[%clk 0:02:53]} 10. Bf3 {[%clk 0:02:40]}  Rc8 {[%clk 0:02:51]} 11. Qe1 {[%clk 0:02:28]}  Nxd4 {[%clk 0:02:34]} 12. Bxd4 {[%clk 0:02:29]}  Qa5 {[%clk 0:02:33]} 13. Qg3 {[%clk 0:02:21]}  Qb4 {[%clk 0:02:21]} 14. Rad1 {[%clk 0:01:49]}  Rc4 {[%clk 0:02:19]} 15. a3 {[%clk 0:01:32]}  Qxb2 {[%clk 0:02:18]} 16. Qxg7 {[%clk 0:01:24]}  Rg8 {[%clk 0:02:17]} 17. Qh6 {[%clk 0:00:42]}  Rxd4 {[%clk 0:02:14]} 18. Rxd4 {[%clk 0:00:40]}  Qxc3 {[%clk 0:02:13]} 19. Rfd1 {[%clk 0:00:39]}  Bc6 {[%clk 0:02:00]} 20. Kh1 {[%clk 0:00:26]}  Qe3 {[%clk 0:01:57]} 21. R4d3 {[%clk 0:00:25]}  Qc5 {[%clk 0:01:48]} 22. e5 {[%clk 0:00:24]}  dxe5 {[%clk 0:01:42]} 23. fxe5 {[%clk 0:00:20]}  Bxf3 {[%clk 0:01:37]} 24. Rxf3 {[%clk 0:00:18]}  Qxe5 {[%clk 0:01:35]} 25. Rfd3 {[%clk 0:00:11]}  Ng4 {[%clk 0:01:29]} 26. Qh4 {[%clk 0:00:06]}  Bxh4 {[%clk 0:01:26]} 0-1


[Site "https://www.chess.com"]

[Event "Titled Tuesday Blitz August 15 Early 2023"]
[White "Saucey, Michel"]
[Black "Gyulamiryan-koryun"]
[WhiteFideId "601845"]
[WhiteElo "2288"]
[BlackElo "2025"]
[Result "1-0"]
[Round "5"]
[TimeControl "180+1"]
[Date "2023.08.15"]
[WhiteClock "0:00:22"]
[BlackClock "0:00:00"]
[Board "215"]

1. d4 {[%clk 0:03:00]}  Nf6 {[%clk 0:02:53]} 2. Nf3 {[%clk 0:03:00]}  d5 {[%clk 0:02:50]} 3. c4 {[%clk 0:03:00]}  e6 {[%clk 0:02:50]} 4. Nc3 {[%clk 0:02:59]}  dxc4 {[%clk 0:02:45]} 5. e4 {[%clk 0:02:56]}  a6 {[%clk 0:02:31]} 6. e5 {[%clk 0:02:45]}  Nd5 {[%clk 0:02:28]} 7. Bxc4 {[%clk 0:02:44]}  b5 {[%clk 0:02:24]} 8. Bd3 {[%clk 0:02:43]}  Bb7 {[%clk 0:02:23]} 9. O-O {[%clk 0:02:38]}  Nd7 {[%clk 0:02:22]} 10. Ne4 {[%clk 0:02:36]}  c5 {[%clk 0:02:18]} 11. Bg5 {[%clk 0:02:35]}  Qb6 {[%clk 0:02:10]} 12. a4 {[%clk 0:02:00]}  cxd4 {[%clk 0:01:55]} 13. axb5 {[%clk 0:02:00]}  axb5 {[%clk 0:01:54]} 14. Rxa8+ {[%clk 0:02:00]}  Bxa8 {[%clk 0:01:54]} 15. Qb3 {[%clk 0:02:00]}  Nb4 {[%clk 0:01:27]} 16. Bb1 {[%clk 0:01:44]}  Bd5 {[%clk 0:01:22]} 17. Qd1 {[%clk 0:01:40]}  d3 {[%clk 0:01:01]} 18. Bxd3 {[%clk 0:01:36]}  Nxd3 {[%clk 0:01:00]} 19. Qxd3 {[%clk 0:01:36]}  Bc4 {[%clk 0:01:01]} 20. Qc2 {[%clk 0:01:29]}  Bb4 {[%clk 0:00:46]} 21. b3 {[%clk 0:01:20]}  f6 {[%clk 0:00:36]} 22. bxc4 {[%clk 0:00:47]}  fxg5 {[%clk 0:00:35]} 23. Nexg5 {[%clk 0:00:45]}  g6 {[%clk 0:00:19]} 24. Nxh7 {[%clk 0:00:42]}  Kf7 {[%clk 0:00:03]} 25. Nhg5+ {[%clk 0:00:34]}  Kg7 {[%clk 0:00:03]} 26. cxb5 {[%clk 0:00:32]}  Ra8 {[%clk 0:00:02]} 27. Qc4 {[%clk 0:00:25]}  Bc5 {[%clk 0:00:00]} 28. Nxe6+ {[%clk 0:00:22]} 1-0


[Site "https://www.chess.com"]

[Event "Titled Tuesday Blitz August 15 Early 2023"]
[White "Bluebaum, Matthias"]
[Black "Firouzja, Alireza"]
[WhiteFideId "24651516"]
[BlackFideId "12573981"]
[WhiteElo "3017"]
[BlackElo "3104"]
[Result "0-1"]
[Round "6"]
[TimeControl "180+1"]
[Date "2023.08.15"]
[WhiteClock "0:00:34"]
[BlackClock "0:00:42"]
[Board "1"]

1. d4 {[%clk 0:03:00]}  Nf6 {[%clk 0:03:00]} 2. c4 {[%clk 0:03:01]}  e6 {[%clk 0:03:00]} 3. Nc3 {[%clk 0:03:01]}  Bb4 {[%clk 0:02:59]} 4. e3 {[%clk 0:03:02]}  b6 {[%clk 0:02:54]} 5. Bd3 {[%clk 0:03:01]}  Bb7 {[%clk 0:02:51]} 6. Nf3 {[%clk 0:03:02]}  O-O {[%clk 0:02:50]} 7. Bd2 {[%clk 0:03:02]}  c5 {[%clk 0:02:46]} 8. a3 {[%clk 0:03:02]}  Bxc3 {[%clk 0:02:46]} 9. Bxc3 {[%clk 0:03:03]}  cxd4 {[%clk 0:02:47]} 10. Nxd4 {[%clk 0:03:04]}  d5 {[%clk 0:02:43]} 11. O-O {[%clk 0:03:03]}  Nbd7 {[%clk 0:02:39]} 12. Rc1 {[%clk 0:03:03]}  Nc5 {[%clk 0:02:38]} 13. Be2 {[%clk 0:02:57]}  dxc4 {[%clk 0:02:38]} 14. Bxc4 {[%clk 0:02:56]}  Nd5 {[%clk 0:02:39]} 15. Bd2 {[%clk 0:02:24]}  Rc8 {[%clk 0:02:23]} 16. Qg4 {[%clk 0:02:11]}  Nf6 {[%clk 0:02:08]} 17. Qe2 {[%clk 0:02:10]}  Nfe4 {[%clk 0:02:08]} 18. Be1 {[%clk 0:02:04]}  Nd6 {[%clk 0:02:07]} 19. b4 {[%clk 0:01:34]}  Nxc4 {[%clk 0:01:49]} 20. bxc5 {[%clk 0:01:35]}  Qd5 {[%clk 0:01:01]} 21. Nf3 {[%clk 0:01:18]}  Ne5 {[%clk 0:00:55]} 22. e4 {[%clk 0:01:03]}  Qd3 {[%clk 0:00:50]} 23. Qe3 {[%clk 0:00:35]}  Ba6 {[%clk 0:00:39]} 24. Bb4 {[%clk 0:00:18]}  Nxf3+ {[%clk 0:00:33]} 25. gxf3 {[%clk 0:00:18]}  Qxe3 {[%clk 0:00:33]} 26. fxe3 {[%clk 0:00:19]}  Bxf1 {[%clk 0:00:33]} 27. Kxf1 {[%clk 0:00:19]}  a5 {[%clk 0:00:33]} 28. Bd2 {[%clk 0:00:19]}  Rxc5 {[%clk 0:00:32]} 29. Rxc5 {[%clk 0:00:19]}  bxc5 {[%clk 0:00:33]} 30. Ke1 {[%clk 0:00:20]}  a4 {[%clk 0:00:33]} 31. Kd1 {[%clk 0:00:20]}  Rb8 {[%clk 0:00:33]} 32. Kc2 {[%clk 0:00:21]}  Rb3 {[%clk 0:00:34]} 33. Bc1 {[%clk 0:00:22]}  e5 {[%clk 0:00:34]} 34. h4 {[%clk 0:00:23]}  f6 {[%clk 0:00:35]} 35. h5 {[%clk 0:00:23]}  Kf7 {[%clk 0:00:35]} 36. h6 {[%clk 0:00:24]}  gxh6 {[%clk 0:00:36]} 37. f4 {[%clk 0:00:25]}  h5 {[%clk 0:00:36]} 38. fxe5 {[%clk 0:00:26]}  fxe5 {[%clk 0:00:37]} 39. Bd2 {[%clk 0:00:27]}  Ke6 {[%clk 0:00:38]} 40. Bc3 {[%clk 0:00:27]}  h4 {[%clk 0:00:39]} 41. Bxe5 {[%clk 0:00:28]}  Kxe5 {[%clk 0:00:39]} 42. Kd2 {[%clk 0:00:29]}  Rxa3 {[%clk 0:00:39]} 43. Ke2 {[%clk 0:00:30]}  Kxe4 {[%clk 0:00:40]} 44. Kf2 {[%clk 0:00:31]}  Rxe3 {[%clk 0:00:40]} 45. Kg2 {[%clk 0:00:32]}  a3 {[%clk 0:00:41]} 46. Kh2 {[%clk 0:00:33]}  a2 {[%clk 0:00:41]} 47. Kg2 {[%clk 0:00:34]}  a1=Q {[%clk 0:00:42]} 48. Kh2 {[%clk 0:00:34]}  Qb2+ {[%clk 0:00:42]} 49. Kg1 {[%clk 0:00:34]}  Re1# {[%clk 0:00:42]} 0-1


[Site "https://www.chess.com"]